bitfinex/quotes_BTCUSD_20250512
["timestamp","ask_amount","ask_price","bid_price","bid_amount"]
[1747026050885,0.92163189,104010.0,104000.0,1.5579207]
[1747026051666,0.6997893,104010.0,104000.0,1.5579207]
[1747026051868,0.92163189,104010.0,104000.0,1.5579207]
[1747026052482,0.91163189,104010.0,104000.0,1.5579207]
[1747026053315,0.83539969,104010.0,104000.0,1.5579207]
[1747026055272,0.86234317,104010.0,104000.0,1.5579207]
[1747026057587,0.87234317,104010.0,104000.0,1.5579207]
[1747026057817,0.87230317,104010.0,104000.0,1.5579207]
[1747026059064,0.53982317,104010.0,104000.0,1.5579207]
[1747026059287,0.59754106,104010.0,104000.0,1.5579207]
[1747026059473,0.75855145,104010.0,104000.0,1.5579207]
[1747026059677,0.7730923,104010.0,104000.0,1.5579207]
[1747026059893,0.75855145,104010.0,104000.0,1.5579207]
[1747026060356,0.7730923,104010.0,104000.0,1.5579207]
[1747026064240,0.5506523,104010.0,104000.0,1.5579207]
[1747026064461,0.7896923,104010.0,104000.0,1.5579207]
[1747026064985,0.7396923,104010.0,104000.0,1.5579207]
[1747026065214,0.7896923,104010.0,104000.0,1.5579207]
[1747026069072,0.64408191,104010.0,104000.0,1.5579207]
[1747026069300,0.7896923,104010.0,104000.0,1.5579207]
[1747026071315,0.7396923,104010.0,104000.0,1.5579207]
[1747026071535,0.7896923,104010.0,104000.0,1.5579207]
[1747026071995,0.7996923,104010.0,104000.0,1.5579207]
[1747026072460,1.11735835,104010.0,104000.0,1.5579207]
[1747026072689,1.038419,104010.0,104000.0,1.5579207]
[1747026073186,0.89280861,104010.0,104000.0,1.5579207]
[1747026074595,0.67099686,104010.0,104000.0,1.5579207]
[1747026074839,0.81660725,104010.0,104000.0,1.5579207]
[1747026077517,0.89288676,104010.0,104000.0,1.5579207]
[1747026077846,0.99398676,104010.0,104000.0,1.5579207]
[1747026078079,0.89288676,104010.0,104000.0,1.5579207]
[1747026078503,0.67099686,104010.0,104000.0,1.5579207]
[1747026078714,0.89288676,104010.0,104000.0,1.5579207]
[1747026084510,0.84288676,104010.0,104000.0,1.5579207]
[1747026097456,0.7666157,104010.0,104000.0,1.5579207]
[1747026097899,0.8677157,104010.0,104000.0,1.5579207]
[1747026098116,0.7666157,104010.0,104000.0,1.5579207]
[1747026100264,1.1818557,104010.0,104000.0,1.5579207]
[1747026106217,1.1596957,104010.0,104000.0,1.5732207]
[1747026106414,1.1596957,104010.0,104000.0,1.5579207]
[1747026110191,1.13274075,104010.0,104000.0,1.38239341]
[1747026115871,1.14924075,104010.0,104000.0,1.38239341]
[1747026122662,1.13274075,104010.0,104000.0,1.38239341]
[1747026123887,1.13274075,104010.0,104000.0,1.3825131]
[1747026124303,1.14834075,104010.0,104000.0,1.3825131]
[1747026125178,1.13274075,104010.0,104000.0,1.3825131]
[1747026126973,1.13274075,104010.0,104000.0,1.12136268]
[1747026129938,1.14834075,104010.0,104000.0,1.12136268]
[1747026130840,1.25959505,104010.0,104000.0,1.12136268]
[1747026131045,1.24959505,104010.0,104000.0,1.12136268]
[1747026131333,1.44521389,104010.0,104000.0,1.12136268]
[1747026131622,1.91326427,104010.0,104000.0,1.12136268]
[1747026132501,1.88631389,104010.0,104000.0,1.12136268]
[1747026132895,1.78521389,104010.0,104000.0,1.12136268]
[1747026133103,1.8121499,104010.0,104000.0,1.12136268]
[1747026133511,1.78521389,104010.0,104000.0,1.12136268]
[1747026133714,1.81213969,104010.0,104000.0,1.12136268]
[1747026134532,1.78521389,104010.0,104000.0,1.12136268]
[1747026136641,1.68935959,104010.0,104000.0,0.90105463]
[1747026139910,1.54374075,104010.0,104000.0,0.90105463]
[1747026144731,1.68935959,104010.0,104000.0,0.90105463]
[1747026145154,1.54374075,104010.0,104000.0,0.90105463]
[1747026146462,1.57062459,104010.0,104000.0,0.90105463]
[1747026147067,1.66647889,104010.0,104000.0,0.90105463]
[1747026151929,1.81209773,104010.0,104000.0,0.90105463]
[1747026158421,1.78521389,104010.0,104000.0,0.65494345]
[1747026158570,1.68935959,104010.0,104000.0,0.65494345]
[1747026159409,1.54374075,104010.0,104000.0,0.65494345]
[1747026161597,1.68935959,104010.0,104000.0,0.65494345]
[1747026162641,1.68935959,104010.0,104000.0,0.65037738]
[1747026165133,1.39812191,104010.0,104000.0,0.65037738]
[1747026165341,1.68935959,104010.0,104000.0,0.65037738]
[1747026165581,1.54374075,104010.0,104000.0,0.65037738]
[1747026168495,1.5706856,104010.0,104000.0,0.65037738]
[1747026168861,1.587253,104010.0,104000.0,0.65037738]
[1747026170050,1.58726086,104010.0,104000.0,0.65037738]
[1747026174306,1.36502086,104010.0,104000.0,0.65037738]
[1747026174526,1.56989346,104010.0,104000.0,0.65037738]
[1747026176824,1.7155123,104010.0,104000.0,0.65037738]
[1747026178124,1.7115123,104010.0,104000.0,0.65037738]
[1747026178559,1.7195123,104010.0,104000.0,0.65137738]
[1747026179095,1.7125123,104010.0,104000.0,0.65037738]
[1747026179509,1.7195123,104010.0,104000.0,0.65037738]
[1747026179713,1.8153666,104010.0,104000.0,0.65037738]
[1747026180390,1.66974776,104010.0,104000.0,0.65037738]
[1747026180681,1.61974776,104010.0,104000.0,0.65037738]
[1747026180824,1.7653666,104010.0,104000.0,0.65037738]
[1747026182728,1.47412892,104010.0,104000.0,0.65037738]
[1747026182943,1.7653666,104010.0,104000.0,0.65037738]
[1747026186181,1.6695123,104010.0,104000.0,0.65037738]
[1747026186395,1.52389346,104010.0,104000.0,0.65037738]
[1747026186629,1.25691261,104010.0,104000.0,0.65037738]
[1747026186863,1.37763261,104010.0,104000.0,0.68167738]
[1747026187073,1.47831261,104010.0,104000.0,0.68167738]
[1747026187289,1.54285346,104010.0,104000.0,0.68167738]
[1747026187503,1.05269377,104010.0,104000.0,0.68167738]
[1747026187719,1.06723462,104010.0,104000.0,0.68167738]
[1747026189310,1.18590861,104010.0,104000.0,0.68167738]
[1747026190198,1.18590861,104010.0,104000.0,0.65037738]
[1747026190199,1.17590861,104010.0,104000.0,0.65037738]
[1747026190624,1.20284043,104010.0,104000.0,0.65037738]
[1747026190839,1.17590861,104010.0,104000.0,0.65037738]
[1747026191487,1.44798175,104010.0,104000.0,0.65037738]
[1747026191698,1.37905651,104010.0,104000.0,0.65037738]
[1747026191908,1.23343767,104010.0,104000.0,0.65037738]
[1747026196503,1.37905651,104010.0,104000.0,0.65037738]
[1747026197148,1.23343767,104010.0,104000.0,0.65037738]
[1747026197932,1.37905651,104010.0,104000.0,0.65037738]
[1747026198112,1.76491081,104010.0,104000.0,0.65037738]
[1747026199911,1.64212745,104010.0,104000.0,0.39842543]
[1747026207131,1.48100861,104010.0,104000.0,0.39842543]
[1747026208034,1.58220861,104010.0,104000.0,0.39842543]
[1747026209985,1.60912361,104010.0,104000.0,0.39842543]
[1747026211109,1.62472361,104010.0,104000.0,0.39842543]
[1747026211967,1.60912361,104010.0,104000.0,0.39842543]
[1747026212176,1.38214361,104010.0,104000.0,0.39842543]
[1747026212384,1.49274361,104010.0,104000.0,0.39842543]
[1747026213228,1.52514361,104010.0,104000.0,0.39842543]
[1747026213651,1.50924361,104010.0,104000.0,0.39842543]
[1747026213859,1.65486245,104010.0,104000.0,0.39842543]
[1747026214934,1.65486245,104010.0,104000.0,0.39830574]
[1747026215486,1.50924361,104010.0,104000.0,0.39830574]
[1747026218160,1.49274361,104010.0,104000.0,0.39830574]
[1747026218838,1.58859791,104010.0,104000.0,0.39830574]
[1747026219679,1.63836245,104010.0,104000.0,0.39830574]
[1747026221168,1.65356245,104010.0,104000.0,0.39830574]
[1747026224727,1.66916245,104010.0,104000.0,0.39830574]
[1747026225353,1.65356245,104010.0,104000.0,0.39830574]
[1747026225554,1.50794361,104010.0,104000.0,0.39830574]
[1747026225757,1.65356245,104010.0,104000.0,0.39830574]
[1747026226622,1.74941675,104010.0,104000.0,0.39830574]
[1747026226832,1.76501675,104010.0,104000.0,0.39830574]
[1747026229345,1.86621675,104010.0,104000.0,0.39830574]
[1747026229569,1.86621675,104010.0,104000.0,0.39842543]
[1747026232423,1.85121675,104010.0,104000.0,0.39742543]
[1747026232625,1.85921675,104010.0,104000.0,0.39742543]
[1747026232748,1.75801675,104010.0,104000.0,0.39742543]
[1747026233450,1.76601675,104010.0,104000.0,0.39742543]
[1747026236292,1.76601675,104010.0,104000.0,0.14839144]
[1747026244337,1.86601675,104010.0,104000.0,0.14839144]
[1747026245446,1.85801675,104010.0,104000.0,0.14839144]
[1747026245671,1.86001675,104010.0,104000.0,0.14839144]
[1747026245907,1.87001675,104010.0,104000.0,0.14839144]
[1747026248237,1.77416245,104010.0,104000.0,0.14839144]
[1747026259206,1.77416245,104010.0,104000.0,0.14827175]
[1747026265033,1.77416245,104010.0,103980.0,0.002]
[1747026265034,1.46706492,103990.0,103980.0,0.002]
[1747026265253,1.17423097,103990.0,103980.0,0.002]
[1747026265503,1.23154597,103990.0,103980.0,0.002]
[1747026265725,1.21644597,103990.0,103980.0,0.002]
[1747026265944,1.06226382,103990.0,103980.0,0.0179]
[1747026266378,1.06926382,103990.0,103980.0,0.0179]
[1747026267405,1.07526382,103990.0,103980.0,0.0179]
[1747026267607,1.07526382,103990.0,103980.0,0.0343]
[1747026269408,1.04834882,103990.0,103980.0,0.0343]
[1747026270250,0.82730882,103990.0,103980.0,0.0343]
[1747026270465,1.04822882,103990.0,103980.0,0.0343]
[1747026272718,1.46358882,103990.0,103980.0,0.0343]
[1747026274952,1.49052364,103990.0,103980.0,0.0343]
[1747026277653,1.26960364,103990.0,103980.0,0.0343]
[1747026277883,1.49048364,103990.0,103980.0,0.0343]
[1747026280411,1.49048364,103990.0,103980.0,0.0179]
[1747026286223,1.53971953,103990.0,103980.0,0.0179]
[1747026286648,1.49048364,103990.0,103980.0,0.0179]
[1747026289562,1.49048364,103990.0,103980.0,0.002]
[1747026291734,1.49048364,103990.0,103980.0,0.0184]
[1747026295092,1.49048364,103990.0,103980.0,0.002]
[1747026295316,1.63610248,103990.0,103980.0,0.002]
[1747026295525,1.49048364,103990.0,103980.0,0.002]
[1747026295953,1.63610248,103990.0,103980.0,0.002]
[1747026297773,1.49048364,103990.0,103980.0,0.002]
[1747026300492,1.52081378,103990.0,103980.0,0.002]
[1747026300727,1.63610248,103990.0,103980.0,0.002]
[1747026300958,1.49048364,103990.0,103980.0,0.002]
[1747026301651,1.63610248,103990.0,103980.0,0.002]
[1747026301891,1.49048364,103990.0,103980.0,0.002]
[1747026304477,1.49036395,103990.0,103980.0,0.002]
[1747026305280,1.63598279,103990.0,103980.0,0.002]
[1747026306026,1.65258279,103990.0,103980.0,0.002]
[1747026306623,0.1924187,103940.0,103930.0,0.14561884]
[1747026306843,0.508993,103940.0,103930.0,0.14754278]
[1747026307013,0.508993,103940.0,103930.0,0.14854278]
[1747026307671,0.508993,103940.0,103930.0,0.001]
[1747026307891,0.51672969,103940.0,103930.0,0.00148422]
[1747026308104,0.51672969,103940.0,103930.0,0.14902708]
[1747026308304,0.51772969,103940.0,103930.0,0.14902708]
[1747026309554,0.51772969,103940.0,103930.0,0.18062708]
[1747026313482,0.51772969,103940.0,103930.0,0.38126306]
[1747026315702,0.51772969,103940.0,103930.0,0.23564422]
[1747026315898,0.51772969,103940.0,103930.0,0.38126306]
[1747026319720,0.51774777,103940.0,103930.0,0.38126306]
[1747026320808,0.51774777,103940.0,103930.0,0.23564422]
[1747026321031,0.51774777,103940.0,103930.0,0.38126306]
[1747026326875,0.51774777,103940.0,103930.0,0.23564422]
[1747026327021,0.51774777,103940.0,103930.0,0.38126306]
[1747026327251,0.51774777,103940.0,103930.0,0.03308422]
[1747026328557,0.51674777,103940.0,103930.0,0.03308422]
[1747026328861,0.51774777,103940.0,103930.0,0.03308422]
[1747026329087,0.51674777,103940.0,103930.0,0.03308422]
[1747026329488,0.51774777,103940.0,103930.0,0.03308422]
[1747026330762,0.51774777,103940.0,103930.0,0.17870306]
[1747026330973,0.51774777,103940.0,103930.0,0.18062709]
[1747026332124,0.29702777,103940.0,103930.0,0.18062709]
[1747026332333,0.51758777,103940.0,103930.0,0.18062709]
[1747026332806,0.51758777,103940.0,103930.0,1.39788409]
[1747026333005,0.51758777,103940.0,103930.0,1.19606006]
[1747026333382,0.51758777,103940.0,103930.0,1.17900106]
[1747026334350,0.51758777,103940.0,103930.0,0.98821106]
[1747026334543,0.51758777,103940.0,103930.0,0.90046637]
[1747026335020,0.51758777,103940.0,103930.0,0.95417124]
[1747026335247,0.51758777,103940.0,103930.0,0.89951124]
[1747026336278,0.51758777,103940.0,103930.0,0.87802524]
[1747026336691,0.51758777,103940.0,103930.0,0.68698084]
[1747026336929,0.51758777,103940.0,103930.0,0.45330084]
[1747026337140,0.51758777,103940.0,103930.0,0.14561884]
[1747026337367,0.51758777,103940.0,103930.0,0.00192394]
[1747026337547,0.51758777,103940.0,103930.0,0.14754278]
[1747026337816,0.51758777,103940.0,103930.0,0.16577247]
[1747026338033,0.51758777,103940.0,103930.0,0.00412969]
[1747026338222,0.53418777,103940.0,103930.0,0.00605363]
[1747026338355,0.53518777,103940.0,103930.0,0.00605363]
[1747026338583,0.55078777,103940.0,103930.0,0.00605363]
[1747026345022,0.55078777,103940.0,103930.0,0.15167247]
[1747026346011,0.53518777,103940.0,103930.0,0.15167247]
[1747026347713,0.51858777,103940.0,103930.0,0.15167247]
[1747026348519,0.53378777,103940.0,103930.0,0.15167247]
[1747026349828,0.53378777,103940.0,103930.0,0.00605363]
[1747026350985,0.55008777,103940.0,103930.0,0.00605363]
[1747026354009,0.20205888,103930.0,103910.0,0.12226425]
[1747026354173,0.29791318,103930.0,103920.0,0.61926643]
[1747026354368,0.29791318,103930.0,103920.0,0.63139461]
[1747026354953,0.29791318,103930.0,103920.0,0.60256061]
[1747026355357,0.29891318,103930.0,103920.0,0.60256061]
[1747026356015,0.29991318,103930.0,103920.0,0.94256061]
[1747026360757,0.31511318,103930.0,103920.0,0.81196061]
[1747026360982,0.31511318,103930.0,103920.0,0.64150961]
[1747026361185,0.31511318,103930.0,103920.0,0.62006161]
[1747026365486,0.33021318,103930.0,103920.0,0.62006161]
[1747026367465,0.33121318,103930.0,103920.0,0.62006161]
[1747026368586,0.33121318,103930.0,103920.0,0.49870961]
[1747026368790,0.33121318,103930.0,103920.0,0.77272361]
[1747026369982,0.33121318,103930.0,103920.0,0.68332361]
[1747026374241,0.33121318,103930.0,103920.0,0.49870961]
[1747026381832,0.33121318,103930.0,103920.0,0.35309077]
[1747026382024,0.33121318,103930.0,103920.0,0.49870961]
[1747026382793,0.33121318,103930.0,103920.0,0.35309077]
[1747026383000,0.33121318,103930.0,103920.0,0.01309077]
[1747026383001,0.40741454,103930.0,103920.0,0.01309077]
[1747026383393,0.23417833,103920.0,103910.0,9.303e-05]
[1747026383605,0.33003263,103920.0,103910.0,0.00105581]
[1747026383819,0.44027263,103920.0,103910.0,0.00105613]
[1747026384079,0.55051263,103920.0,103910.0,9.303e-05]
[1747026384967,0.55151263,103920.0,103910.0,9.303e-05]
[1747026386070,0.55151263,103920.0,103910.0,0.00105621]
[1747026386623,0.55251263,103920.0,103910.0,0.00105621]
[1747026386784,0.55251263,103920.0,103910.0,0.02412338]
[1747026387019,0.55251263,103920.0,103910.0,0.00105621]
[1747026387253,0.55251263,103920.0,103910.0,9.303e-05]
[1747026387514,0.55251263,103920.0,103910.0,0.00105622]
[1747026388918,0.55251263,103920.0,103910.0,9.303e-05]
[1747026389534,0.55251263,103920.0,103910.0,0.00105636]
[1747026391509,0.55151263,103920.0,103910.0,0.00105636]
[1747026391950,0.55251263,103920.0,103910.0,0.02360389]
[1747026392318,0.55151263,103920.0,103910.0,0.02360389]
[1747026392728,0.55251263,103920.0,103910.0,0.02360389]
[1747026392934,0.55151263,103920.0,103910.0,0.02360389]
[1747026393344,0.55251263,103920.0,103910.0,0.02360389]
[1747026393778,0.55151263,103920.0,103910.0,0.02360389]
[1747026394262,0.55251263,103920.0,103910.0,0.02360389]
[1747026395869,0.55251263,103920.0,103910.0,0.00105636]
[1747026396107,0.56705348,103920.0,103910.0,9.303e-05]
[1747026396522,0.56705348,103920.0,103910.0,0.00105645]
[1747026396933,0.56605348,103920.0,103910.0,0.00105645]
[1747026397146,0.57278865,103920.0,103910.0,0.00105645]
[1747026397363,0.57478865,103920.0,103910.0,0.00105645]
[1747026397764,0.57578865,103920.0,103910.0,0.00105645]
[1747026399769,0.56905348,103920.0,103910.0,0.00105645]
[1747026407174,0.57578997,103920.0,103910.0,0.00105645]
[1747026414565,0.12583552,103920.0,103910.0,1.46515615]
[1747026414748,0.12583497,103920.0,103910.0,1.84268758]
[1747026414974,0.01073649,103920.0,103910.0,1.84268758]
[1747026415182,0.004,103920.0,103910.0,1.84268758]
[1747026415381,0.003,103920.0,103910.0,1.95292758]
[1747026415591,0.01062195,103920.0,103910.0,1.95292758]
[1747026415798,0.01162195,103920.0,103910.0,1.95292758]
[1747026416002,0.02224399,103920.0,103910.0,1.95292758]
[1747026416225,0.02124399,103920.0,103910.0,1.95292758]
[1747026416432,0.02224399,103920.0,103910.0,1.95292758]
[1747026417054,0.02324399,103920.0,103910.0,1.95292758]
[1747026418065,0.03286622,103920.0,103910.0,1.95292758]
[1747026420282,0.05211169,103920.0,103910.0,1.95292758]
[1747026420496,0.04248909,103920.0,103910.0,1.95292758]
[1747026420707,0.03286659,103920.0,103910.0,1.95292758]
[1747026421358,0.02324427,103920.0,103910.0,1.95292758]
[1747026421579,0.01362204,103920.0,103910.0,1.95292758]
[1747026421781,0.01362204,103920.0,103910.0,1.84268758]
[1747026422015,0.01362204,103920.0,103910.0,1.95288758]
[1747026422393,0.02324427,103920.0,103910.0,1.95288758]
[1747026422593,0.01362204,103920.0,103910.0,1.95288758]
[1747026422827,0.01362195,103920.0,103910.0,1.95288758]
[1747026423027,0.02324408,103920.0,103910.0,1.95288758]
[1747026425064,0.0328664,103920.0,103910.0,1.95288758]
[1747026426262,0.02324408,103920.0,103910.0,1.95288758]
[1747026426461,0.0328664,103920.0,103910.0,1.95288758]
[1747026427436,0.0318664,103920.0,103910.0,1.95288758]
[1747026430205,0.0318664,103920.0,103910.0,1.94798758]
[1747026430609,0.02224408,103920.0,103910.0,1.94798758]
[1747026430853,0.0318664,103920.0,103910.0,1.95288758]
[1747026431463,0.003,103920.0,103910.0,1.95288758]
[1747026431660,0.03554102,103940.0,103930.0,0.0673519]
[1747026431867,0.33443477,103940.0,103930.0,1.54670234]
[1747026432069,0.35013477,103940.0,103930.0,1.46916792]
[1747026432474,0.35013477,103940.0,103930.0,1.47878922]
[1747026432688,0.35013477,103940.0,103930.0,1.46916792]
[1747026432869,0.35013477,103940.0,103930.0,1.12797153]
[1747026433070,0.35013477,103940.0,103930.0,0.79492253]
[1747026433455,0.3415144,103940.0,103930.0,0.79592253]
[1747026435123,0.3415144,103940.0,103930.0,0.78630104]
[1747026435294,0.33189375,103940.0,103930.0,0.79592271]
[1747026436513,0.33189375,103940.0,103930.0,0.80554429]
[1747026441418,0.33189375,103940.0,103930.0,1.15516578]
[1747026442173,0.15871636,103940.0,103930.0,1.16478708]
[1747026442445,0.05324066,103940.0,103930.0,1.16478653]
[1747026442666,0.03754047,103940.0,103930.0,1.16478653]
[1747026442870,0.05678159,103940.0,103930.0,1.16478653]
[1747026443083,0.04716094,103940.0,103930.0,1.16478653]
[1747026443508,0.01162019,103940.0,103930.0,1.31040537]
[1747026443725,0.002,103940.0,103930.0,1.31530537]
[1747026443933,0.002,103940.0,103930.0,1.47550537]
[1747026445001,0.002,103940.0,103930.0,1.47450537]
[1747026445426,0.003,103940.0,103930.0,1.62512421]
[1747026445632,0.002,103940.0,103930.0,1.47950537]
[1747026446213,0.002,103940.0,103930.0,1.49423566]
[1747026446438,0.003,103940.0,103930.0,1.49923566]
[1747026450344,0.003,103940.0,103930.0,1.49433566]
[1747026450989,0.0189,103940.0,103930.0,1.49433566]
[1747026451194,0.0189,103940.0,103930.0,1.45907682]
[1747026451195,0.0342,103940.0,103930.0,1.45907682]
[1747026451752,0.0342,103940.0,103930.0,1.23851682]
[1747026452094,0.0342,103940.0,103930.0,1.34871682]
[1747026452874,0.0342,103940.0,103930.0,1.49433566]
[1747026454666,0.0438201,103940.0,103930.0,1.33398653]
[1747026454880,0.0342,103940.0,103930.0,1.33398653]
[1747026455286,0.0438201,103940.0,103930.0,1.33402653]
[1747026455494,0.0342,103940.0,103930.0,1.47964537]
[1747026455642,0.0438201,103940.0,103930.0,1.22378653]
[1747026455844,0.0438201,103940.0,103930.0,1.33402653]
[1747026456051,0.0438201,103940.0,103930.0,1.34880203]
[1747026456456,0.0438201,103940.0,103930.0,1.23856203]
[1747026456711,0.0438201,103940.0,103930.0,1.34880203]
[1747026456857,0.0438201,103940.0,103930.0,1.23856203]
[1747026457059,0.0388201,103940.0,103930.0,1.23856203]
[1747026457317,0.0388201,103940.0,103930.0,1.34880203]
[1747026457727,0.0388201,103940.0,103930.0,1.23856203]
[1747026457728,0.0292,103940.0,103930.0,1.23856203]
[1747026457919,0.0292,103940.0,103930.0,1.49442087]
[1747026459337,0.0292,103940.0,103930.0,1.44442087]
[1747026459734,0.25048011,103940.0,103930.0,1.15454402]
[1747026460035,0.04844066,103940.0,103930.0,0.91712923]
[1747026460670,0.04844066,103940.0,103930.0,0.93712923]
[1747026461071,0.04844066,103940.0,103930.0,0.91712923]
[1747026461584,0.05806131,103940.0,103930.0,0.91712923]
[1747026461884,0.04844066,103940.0,103930.0,0.91712923]
[1747026462693,0.05806131,103940.0,103930.0,0.91712923]
[1747026462894,0.04844066,103940.0,103930.0,0.91712923]
[1747026463606,0.05806131,103940.0,103930.0,0.91712923]
[1747026463832,0.04844066,103940.0,103930.0,0.91712923]
[1747026465920,0.05806131,103940.0,103930.0,0.91712923]
[1747026466136,0.04844066,103940.0,103930.0,0.91712923]
[1747026469421,0.04844056,103940.0,103930.0,0.91712923]
[1747026469995,0.05806121,103940.0,103930.0,0.91712923]
[1747026470774,0.05806112,103940.0,103930.0,0.91712923]
[1747026472842,0.04844056,103940.0,103930.0,0.91712923]
[1747026475546,0.04844056,103940.0,103930.0,0.54826449]
[1747026475780,0.04844056,103940.0,103930.0,0.55788598]
[1747026476799,0.04844056,103940.0,103930.0,0.56750756]
[1747026477424,0.05806103,103940.0,103930.0,0.91712923]
[1747026477883,0.04844056,103940.0,103930.0,0.91712923]
[1747026479928,0.05806103,103940.0,103930.0,0.91712923]
[1747026481476,0.06768178,103940.0,103930.0,0.91712923]
[1747026481681,0.06768168,103940.0,103930.0,0.91712923]
[1747026481900,0.06768159,103940.0,103930.0,0.91712923]
[1747026482212,0.05806103,103940.0,103930.0,0.91712923]
[1747026486526,0.04844056,103940.0,103930.0,0.91712923]
[1747026487286,0.03882019,103940.0,103930.0,0.91712923]
[1747026487488,0.04844047,103940.0,103930.0,0.92160536]
[1747026488477,0.05806084,103940.0,103930.0,0.92160536]
[1747026488941,0.04844047,103940.0,103930.0,0.92160536]
[1747026493128,0.05806084,103940.0,103930.0,0.92160536]
[1747026493684,0.04844047,103940.0,103930.0,0.92160536]
[1747026495994,0.05806094,103940.0,103930.0,0.92160536]
[1747026499515,0.04844047,103940.0,103930.0,0.92160536]
[1747026500565,0.0292,103940.0,103930.0,0.92160536]
[1747026500979,0.0292,103940.0,103930.0,1.0672242]
[1747026501357,0.0292,103940.0,103930.0,0.92160536]
[1747026502173,0.03882028,103940.0,103930.0,0.92160536]
[1747026502765,0.03882019,103940.0,103930.0,0.92160536]
[1747026502967,0.0292,103940.0,103930.0,0.92160536]
[1747026503577,0.03882019,103940.0,103930.0,0.92160536]
[1747026503959,0.0292,103940.0,103930.0,0.92160536]
[1747026505187,0.0388201,103940.0,103930.0,0.92160536]
[1747026505365,0.04844038,103940.0,103930.0,0.92160536]
[1747026505567,0.31706044,103940.0,103930.0,0.76636531]
[1747026505844,0.13426221,103940.0,103930.0,0.86777266]
[1747026506593,0.13426211,103940.0,103930.0,0.86777266]
[1747026507233,0.12464183,103940.0,103930.0,0.86777266]
[1747026508301,0.04844047,103940.0,103930.0,0.86777266]
[1747026508716,0.04844038,103940.0,103930.0,0.86777266]
[1747026508869,0.0388201,103940.0,103930.0,0.86777266]
[1747026509254,0.0292,103940.0,103930.0,0.86777266]
[1747026509489,0.0336,103950.0,103940.0,0.36886168]
[1747026509691,0.0336,103950.0,103940.0,2.00249036]
[1747026509884,0.0336,103950.0,103940.0,2.00716872]
[1747026510547,0.04321917,103950.0,103940.0,2.00716872]
[1747026510744,0.04421926,103950.0,103940.0,2.01116872]
[1747026510951,0.04421917,103950.0,103940.0,1.84008929]
[1747026511325,0.04421917,103950.0,103940.0,1.67116872]
[1747026511935,0.04521917,103950.0,103940.0,1.67516872]
[1747026512895,0.04521917,103950.0,103940.0,1.74365246]
[1747026513584,0.05483853,103950.0,103940.0,1.74365246]
[1747026514417,0.04521917,103950.0,103940.0,1.74365246]
[1747026514611,0.05483853,103950.0,103940.0,1.74365246]
[1747026516227,0.06445807,103950.0,103940.0,1.74365246]
[1747026519046,0.0740777,103950.0,103940.0,2.08365246]
[1747026519246,0.08369752,103950.0,103940.0,2.08365246]
[1747026519496,0.0740777,103950.0,103940.0,2.08365246]
[1747026519702,0.08369752,103950.0,103940.0,2.08365246]
[1747026519878,0.0740777,103950.0,103940.0,2.08365246]
[1747026522131,0.08369743,103950.0,103940.0,2.08365246]
[1747026522767,0.08369743,103950.0,103940.0,1.8384726]
[1747026523067,0.08369808,103950.0,103940.0,1.86733446]
[1747026523653,0.08369808,103950.0,103940.0,1.72171562]
[1747026523860,0.34309404,103950.0,103940.0,1.48452136]
[1747026524067,0.34309404,103950.0,103940.0,0.54292336]
[1747026524392,0.34309404,103950.0,103940.0,0.52797636]
[1747026525592,0.34309404,103950.0,103940.0,0.49797636]
[1747026526790,0.34309404,103950.0,103940.0,0.48738336]
[1747026527781,0.45317404,103950.0,103940.0,0.48738336]
[1747026530429,0.45317404,103950.0,103940.0,0.47574336]
[1747026531098,0.45317404,103950.0,103940.0,0.45730436]
[1747026532318,0.45317404,103950.0,103940.0,0.35267836]
[1747026533932,0.45317404,103950.0,103940.0,0.63169436]
[1747026534495,0.45317404,103950.0,103940.0,0.48749436]
[1747026534909,0.45317404,103950.0,103940.0,0.35267836]
[1747026535547,0.45317404,103950.0,103940.0,0.36229929]
[1747026537114,0.45317404,103950.0,103940.0,0.49711529]
[1747026537285,0.44355431,103950.0,103940.0,0.49711529]
[1747026539511,0.44355431,103950.0,103940.0,0.35267836]
[1747026540510,0.44355431,103950.0,103940.0,0.36229929]
[1747026540802,0.44355431,103950.0,103940.0,0.49711529]
[1747026541486,0.44355431,103950.0,103940.0,0.53559903]
[1747026542156,0.44355431,103950.0,103940.0,0.40078303]
[1747026542384,0.44355431,103950.0,103940.0,0.53558503]
[1747026542581,0.44155431,103950.0,103940.0,0.52758503]
[1747026543019,0.44255431,103950.0,103940.0,0.53058503]
[1747026543605,0.44255431,103950.0,103940.0,0.35729929]
[1747026544392,0.44255431,103950.0,103940.0,0.34767836]
[1747026544572,0.44355431,103950.0,103940.0,0.35067836]
[1747026545025,0.44355431,103950.0,103940.0,0.67316629]
[1747026545225,0.44355431,103950.0,103940.0,0.49396629]
[1747026545427,0.44355431,103950.0,103940.0,0.36029929]
[1747026545633,0.43393449,103950.0,103940.0,0.36029929]
[1747026547194,0.43393449,103950.0,103940.0,0.64778713]
[1747026547431,0.43393449,103950.0,103940.0,0.68627087]
[1747026547743,0.43393449,103950.0,103940.0,0.54207087]
[1747026550325,0.43393449,103950.0,103940.0,0.69731036]
[1747026550551,0.44355431,103950.0,103940.0,0.69731036]
[1747026551341,0.44355431,103950.0,103940.0,0.55169152]
[1747026553455,0.43393449,103950.0,103940.0,0.54207087]
[1747026555035,0.43393449,103950.0,103940.0,0.55169152]
[1747026559552,0.43393449,103950.0,103940.0,0.49396629]
[1747026561394,0.43393449,103950.0,103940.0,0.48434536]
[1747026562613,0.43393449,103950.0,103940.0,0.01067836]
[1747026570321,0.04162065,103940.0,103930.0,0.41684296]
[1747026570562,0.13747495,103940.0,103930.0,0.77757296]
[1747026570788,0.14709551,103940.0,103930.0,0.77757296]
[1747026571010,0.14709551,103940.0,103930.0,0.78801197]
[1747026571229,0.14709551,103940.0,103930.0,0.77757296]
[1747026571659,0.14809551,103940.0,103930.0,0.78257296]
[1747026571807,0.15871598,103940.0,103930.0,0.78657296]
[1747026572451,0.15871598,103940.0,103930.0,0.82506035]
[1747026572663,0.15871598,103940.0,103930.0,0.79195735]
[1747026572884,0.16833635,103940.0,103930.0,0.80157874]
[1747026573835,0.17795663,103940.0,103930.0,0.80157874]
[1747026575937,0.1779571,103940.0,103930.0,0.80157874]
[1747026577612,0.37037636,103940.0,103930.0,0.78233641]
[1747026578763,0.15871598,103940.0,103930.0,0.79195762]
[1747026579151,0.16833673,103940.0,103930.0,0.79195762]
[1747026581322,0.37037627,103940.0,103930.0,0.77271539]
[1747026581577,0.41771595,103940.0,103930.0,0.009]
[1747026581790,0.52763595,103940.0,103930.0,0.009]
[1747026582009,0.5421768,103940.0,103930.0,0.009]
[1747026582213,0.54893822,103940.0,103930.0,0.009]
[1747026582665,0.54793822,103940.0,103930.0,0.004]
[1747026582839,0.54893822,103940.0,103930.0,0.005]
[1747026583469,0.54793822,103940.0,103930.0,0.001]
[1747026583671,0.54793822,103940.0,103930.0,0.002]
[1747026583853,0.54893822,103940.0,103930.0,0.002]
[1747026587397,0.45819601,103940.0,103930.0,0.002]
[1747026587655,0.23445907,103930.0,103920.0,0.14561884]